Cogmind - Beta 15 @@@ ROGUE MODE // 2025.06.08 @ 22:17:46 Player: BVrutally Odd Result: Destroyed by 3R-JJ4(R) with Subdweller Machine Gun Performance ------------- Evolutions (0) 0 Regions Visited (2) 400 Robots Destroyed (30) 150 Value Destroyed (581) 581 Prototype IDs (0) 0 Alien Tech Used (0) 0 Bonus (0) 0 TOTAL SCORE: 1131 Bonus ------- None Cogmind --------- Core Integrity 0/250 Matter 294/300 Energy 250/250 System Corruption 0% Temperature Cool (0) Movement Treading (480) Ox4 Location -10/Subcaves Parts ------- > --- POWER (1) -------- Ion Engine > --- PROPULSION (2) --- Light Treads Armored Wheel > --- UTILITY (2) ------ Huge Storage Unit Salvage Targeting Computer > --- WEAPON (2) ------- Beam Rifle Subdweller Machine Gun > --- INVENTORY (25) --- Light Ion Engine Subdweller Power Source Makeshift Power Source Compact Wheel Armored Wheel Subdweller Monowheel Small Storage Unit Machine Analyzer Subdweller Laser Light Assault Rifle Subdweller Machine Gun Light Cannon Light Cannon Light Cannon Multitool Scrap Shield Fragment (49) Scrap Shield Fragment (47) Peak State ------------ > --- POWER ------------ Ion Engine > --- PROPULSION ------- Light Treads Armored Wheel > --- UTILITY ---------- Huge Storage Unit Salvage Targeting Computer > --- WEAPON ----------- Beam Rifle Subdweller Machine Gun > --- INVENTORY -------- Light Ion Engine Subdweller Power Source Makeshift Power Source Compact Wheel Armored Wheel Subdweller Monowheel Small Storage Unit Machine Analyzer Subdweller Laser Light Assault Rifle Subdweller Machine Gun Light Cannon Light Cannon Light Cannon Multitool Scrap Shield Fragment Scrap Shield Fragment [Rating: 14] Favorites ----------- Power Ion Engine Engine Ion Engine Propulsion Light Treads Treads Light Treads Wheel Compact Wheel Utility Huge Storage Unit Device Seismic Detector Storage Huge Storage Unit Processor Salvage Targeting Computer Protection Scrap Shield Weapon Beam Rifle Energy Gun Beam Rifle Ballistic Gun Subdweller Machine Gun Build | -11 -10 -10 ------- Run | Yrd Mat Sub Slots Evolved . | . . . Power . | . . . Propulsion . | . . . Utility . | . . . Weapon . | . . . Parts Attached 18 | 8 5 5 Power 2 | 1 1 . Engine 2 | 1 1 . Core . | . . . Reactor . | . . . Propulsion 4 | 2 1 1 Treads 2 | 2 . . Leg . | . . . Wheel 2 | . 1 1 Hover . | . . . Flight . | . . . Utility 6 | 3 1 2 Device 2 | 2 . . Storage 2 | 1 1 . Processor 1 | . . 1 Hackware . | . . . Protection 1 | . . 1 Artifact . | . . . Weapon 6 | 2 2 2 Energy Gun 5 | 2 2 1 Energy Cannon . | . . . Ballistic Gun 1 | . . 1 Ballistic Cannon . | . . . Launcher . | . . . Special Weapon . | . . . Impact Weapon . | . . . Slashing Weapon . | . . . Piercing Weapon . | . . . Special Melee Weapon . | . . . Unidentified Prototypes . | . . . Parts Lost 3 | . . 3 Power . | . . . Propulsion 1 | . . 1 Utility 2 | . . 2 Weapon . | . . . Highest Loss Streak 1 | . . 1 To Critical Strikes . | . . . Average Backups 7 | 1 6 11 Power 1 | . 1 2 Propulsion 1 | . 1 1 Utility 2 | . 1 2 Weapon 2 | . 1 3 Tool/Special . | . . . Unused Backups 14 | . 1 13 Power 3 | . . 3 Propulsion 2 | . . 2 Utility 3 | . 1 2 Weapon 5 | . . 5 Tool/Special 1 | . . 1 Average Slot Usage (%) 94 | . 100 89 Engine 14 | . 14 14 Treads 14 | . 14 13 Wheel 13 | . 13 14 Device 8 | . 14 2 Storage 11 | . 14 9 Processor 1 | . . 2 Protection 1 | . . 3 Energy Gun 24 | . 28 20 Ballistic Gun 3 | . . 7 Peak Build Rating 14 | 7 10 14 Average Rating 9 | 5 8 11 On Entrance 5 | . 7 10 Naked Turns . | . . . Heaviest Build 93 | 12 92 93 Greatest Support 40 | 40 40 16 Greatest Overweight (x) 7 | . 5 7 Average Overweight (x) 3 | . 4 3 Largest Inventory Capacity 25 | 8 25 25 Average Capacity 20 | 7 24 18 Most Carried 17 | 3 12 17 Average Carried 8 | 1 6 11 Final Capacity 25 | 8 25 25 Final Carried 17 | 2 12 17 Class Distribution -------------------- 93% | Mutant 6% | Subdweller-Mutant Dominant Class ---------------- Mutant | -10/Materials Mutant | -10/Subcaves Resources | -11 -10 -10 ----------- Run | Yrd Mat Sub Matter Collected 482 | 280 90 112 Remotely . | . . . Salvage Created 858 | 205 251 402 Parts 64 | 14 13 37 Haulers Intercepted 1 | . 1 . Recyclers Shooed . | . . . Parts Field Recycled . | . . . Retrieved Matter . | . . . Parts Self-Destructed 21 | . . 21 Prevented . | . . . Kills | -11 -10 -10 ------- Run | Yrd Mat Sub Combat Hostiles Destroyed 19 | . 6 13 Guns 19 | . 6 13 Classes Destroyed 9 | 2 4 3 Tunneler 6 | 6 . . Hauler 1 | . 1 . Recycler 1 | 1 . . Turret 2 | . . 2 Watcher 1 | . 1 . Swarmer 10 | . 3 7 Grunt 3 | . 3 . Artisan 1 | . . 1 Subdweller 6 | . . 6 Best Kill Streak 5 | 2 3 5 Combat Bots Only 4 | . 3 4 Max Kills in Single Turn 2 | 1 1 2 Gunslinging 1 | . . 1 Exploded . | . . . Melee . | . . . Uniques/NPCs Destroyed . | . . . Combat | -11 -10 -10 -------- Run | Yrd Mat Sub Hostile Shots Fired 205 | . 28 177 Missed 74 | . 4 70 Hits 131 | . 24 107 Projectile 131 | . 24 107 Critical Strikes 3 | . . 3 Damage Taken 1096 | . 247 849 Core 253 | . 55 198 Absorbed by Shields . | . . . Core Remaining (%) 100 | 100 . . Volleys Fired 95 | 21 26 48 Largest 2 | 2 2 2 Hottest 116 | 90 90 116 Shots Fired 181 | 41 52 88 Gun 181 | 41 52 88 Cannon . | . . . Launcher . | . . . Special . | . . . Kinetic 14 | . . 14 Thermal 167 | 41 52 74 Explosive . | . . . Electromagnetic . | . . . Robot Hit Streak 17 | 6 6 17 Robot Miss Streak 3 | 2 3 3 Penetration Max . | . . . Secondary Targets 3 | . 2 1 Max Gunslinging Chain 1 | . 1 1 Shots Hit Robots 112 | 29 32 51 Core Hits 46 | 8 14 24 Critical Kills 1 | . . 1 Critical Parts Destroyed . | . . . Critical Strikes 9 | . 3 6 Burn 8 | . 3 5 Destroy 1 | . . 1 Melee Attacks . | . . . Impact . | . . . Slashing . | . . . Piercing . | . . . Sneak Attacks . | . . . Combat Hostiles . | . . . Follow-up Attacks . | . . . Damage Inflicted 1563 | 332 379 852 Guns 1563 | 332 379 852 Cannons . | . . . Explosions . | . . . Melee . | . . . Ramming . | . . . Kinetic 197 | . . 197 Thermal 1366 | 332 379 655 Explosive . | . . . Electromagnetic . | . . . Impact . | . . . Slashing . | . . . Piercing . | . . . Highest Corruption . | . . . Average Corruption . | . . . Corruption Purged . | . . . Corruption Blocked . | . . . Overload Shots . | . . . Overflow Damage . | . . . Projectiles . | . . . Explosions . | . . . Melee . | . . . Knockbacks . | . . . Impact . | . . . Kinetic . | . . . Secondary . | . . . Self-Inflicted Damage . | . . . Shots . | . . . Rammed . | . . . Targets Rammed . | . . . Kicked . | . . . Crushed . | . . . Highest Temperature 272 | 240 177 272 Average Temperature 75 | 67 77 118 Received Heat Transfer 595 | . 81 514 Siege Activations . | . . . Martial Activations . | . . . Shielding Activations . | . . . Robots Disrupted . | . . . Combat Hostiles . | . . . Robots Corrupted . | . . . Combat Hostiles . | . . . Parts Fried . | . . . Impact Corruptions . | . . . Robots Melted . | . . . Combat Hostiles . | . . . Parts Melted 6 | 2 2 2 Heat Transferred 3960 | 893 1227 1840 Parts Sabotaged . | . . . Parts Stolen . | . . . Parts Stripped . | . . . Power Chain Reactions . | . . . Alert | -11 -10 -10 ------- Run | Yrd Mat Sub Maximum Alert Level . | . . . Low Security (%) 100 | 100 100 . Level 1 . | . . . Level 2 . | . . . Level 3 . | . . . Level 4 . | . . . Level 5 . | . . . High Security . | . . . Max Security . | . . . Peak Influence 85 | 10 85 . Initial . | . . . Average 8 | . 10 . Influence Increases 454 | 35 184 235 Destroy 0b10 Robot/C 300 | . 120 180 Destroy 0b10 Robot/NC 45 | 35 10 . Destroy Leader 34 | . 24 10 Lose Combat Pursuer 75 | . 30 45 Influence Decreases 454 | 35 184 235 Time Decay 444 | 35 184 225 Lost Part 10 | . . 10 Squads Dispatched . | . . . Investigation . | . . . Extermination . | . . . Reinforcement . | . . . Assault . | . . . Garrison . | . . . Intercept . | . . . Searches Triggered . | . . . Construction Impeded . | . . . Haulers Reinforced . | . . . Active Scanning Responses . | . . . Cargo Convoy Interrupts . | . . . Stealth | -11 -10 -10 --------- Run | Yrd Mat Sub Distress Signals 2 | . 2 . Communications Jammed . | . . . Distress Signals . | . . . Times Spotted 27 | . 10 17 Peak Tracking Total 4 | . 4 4 Tactical Retreats 4 | . 2 2 Traps | -11 -10 -10 ------- Run | Yrd Mat Sub Traps Triggered . | . . . Indirectly . | . . . Trap Hack Attempts . | . . . Triggered . | . . . Disarmed . | . . . Reprogrammed . | . . . Reused . | . . . Traps Extracted . | . . . Installed . | . . . Triggered . | . . . Machines | -11 -10 -10 ---------- Run | Yrd Mat Sub Machines Disabled 2 | . . 2 Max in Single Turn 1 | . . 1 Machines Repaired . | . . . Machines Dismantled . | . . . Machines Sabotaged . | . . . Overloaded Fab Kills . | . . . Hacking | -11 -10 -10 --------- Run | Yrd Mat Sub Machines Accessed 3 | . 3 . Terminals 2 | . 2 . Fabricators . | . . . Repair Stations . | . . . Recycling Units 1 | . 1 . Scanalyzers . | . . . Garrison Access . | . . . Total Hacks 9 | . 9 . Successful 3 | . 3 . Failed 6 | . 6 . Catastrophic 2 | . 2 . Database Lockouts . | . . . Manual 3 | . 3 . Terminals 7 | . 7 . Fabricators . | . . . Repair Stations . | . . . Recycling Units 2 | . 2 . Scanalyzers . | . . . Garrison Access . | . . . Terminal Hacks 2 | . 2 . Locate Traps 1 | . 1 . Zone Layout 1 | . 1 . Fabricator Hacks . | . . . Repair Station Hacks . | . . . Recycling Unit Hacks 1 | . 1 . Retrieve Components 1 | . 1 . Scanalyzer . | . . . Garrison Access Hacks . | . . . Unauthorized Hacks . | . . . Terminals . | . . . Fabricators . | . . . Repair Stations . | . . . Recycling Units . | . . . Scanalyzers . | . . . Garrison Access . | . . . Data Cores Recovered . | . . . Used . | . . . Hacking Detections 3 | . 3 . Full Trace Events . | . . . Feedback Events . | . . . Feedback Blocked . | . . . Robot Schematics Acquired . | . . . Robots Built . | . . . Authchips . | . . . Time . | . . . Total Robot Build Rating . | . . . Part Schematics Acquired . | . . . Parts Built . | . . . Authchips . | . . . Time . | . . . Total Part Build Rating . | . . . Parts Repaired . | . . . Time . | . . . Parts Recycled . | . . . Recycled Matter . | . . . Retrieved Matter . | . . . Retrieved Components 10 | . 10 . Parts Scanalyzed . | . . . Part Schematics Acquired . | . . . Parts Damaged . | . . . Bothacking | -11 -10 -10 ------------ Run | Yrd Mat Sub Used RIF Installer . | . . . Robots Hacked . | . . . Non-combat . | . . . Combat . | . . . Robot Hacks Applied . | . . . Relay Couplers Released . | . . . Fabnet Peak Effective % . | . . . Robots Rewired . | . . . Allies Hacked . | . . . Hacks Repelled . | . . . Allies | -11 -10 -10 -------- Run | Yrd Mat Sub Total Allies . | . . . Largest Group . | . . . Highest-Rated Group . | . . . Highest-Rated Ally . | . . . Total Orders . | . . . Ally Attacks . | . . . Total Damage . | . . . Kills . | . . . Allies Corrupted . | . . . Allies Melted . | . . . Intel | -11 -10 -10 ------- Run | Yrd Mat Sub Active Infowar (turns) 1487 | 96 1153 238 Seismic 1487 | 96 1153 238 Robot Analysis Total . | . . . Derelict Logs Recovered 1 | . . 1 Drone Launches . | . . . Drone Recoveries . | . . . Exploration | -11 -10 -10 ------------- Run | Yrd Mat Sub Turns Passed 2628 | 277 1153 1198 Spaces Moved 1109 | 118 371 620 Core 5 | 5 . . Treads 121 | 113 8 . Legs . | . . . Wheels 983 | . 363 620 Hover . | . . . Flight . | . . . Fastest Speed 50 | 50 160 90 Average Speed 160 | 155 175 152 Slowest Speed 320 | 160 320 195 Overloaded Moves . | . . . Propulsion Burnouts . | . . . Robots Hopped . | . . . Potential Cave-ins . | . . . Cave-ins Triggered . | . . . Exploration Rate (%) 27 | 6 55 21 Regions Visited 2 Branch Regions 1 Pre-discovered Areas . | . . . Known Exits Taken . | . . . Unknown Exits Taken 2 | 1 1 . Scrap Searched . | . . . Spaces Dug . | . . . Terrain Destroyed 2 | . . 2 Melee . | . . . Projectile 2 | . . 2 AOE . | . . . Terrain Rammed . | . . . Walls Destroyed . | . . . Machines Disabled . | . . . Actions | -11 -10 -10 --------- Run | Yrd Mat Sub Total 1766 | 167 816 783 Wait 497 | 18 399 80 Move 1107 | 117 370 620 Hop . | . . . Pick Up 30 | 2 9 19 Fast Attach 9 | 7 . 2 Attach 2 | . . 2 Detach . | . . . Swap 16 | 1 9 6 Drop 8 | 1 3 4 Fire 95 | 21 26 48 Melee . | . . . Ram . | . . . Kick . | . . . Crush . | . . . Escape Stasis . | . . . Rewire . | . . . Trap . | . . . Miscellaneous 2 | . . 2 Route ------- -11/Scrapyard -10/Materials (discovered 3 exits: [*Mat] / [*Min] / [*Sub]) -10/Subcaves (discovered 2 exits: [*Mat] / [*Rec]) History --------- Turn | Location | Event 7 | -11/Scrapyard | Discovered new exit (range 15) 278 | -11/Scrapyard | Entered Materials 319 | -10/Materials | Build established: Mutant 447 | -10/Materials | Discovered new exit (range 16) 778 | -10/Materials | Derelicts attacked the area 1354 | -10/Materials | Discovered new exit (range 4) 1417 | -10/Materials | Discovered new exit (range 8) 1431 | -10/Materials | Entered Subcaves 1432 | -10/Subcaves | Approached by a straggling Scientist 1472 | -10/Subcaves | Learned Materials terminal intel 1514 | -10/Subcaves | Shifting Twisted Machinery released Sub. Laser 1519 | -10/Subcaves | Shifting Twisted Machinery released Mak. Power Source 1777 | -10/Subcaves | Discovered new exit (range 16) 1929 | -10/Subcaves | Ambushed by angry Subdweller bent on revenge 1933 | -10/Subcaves | Core integrity fell below 50% 2143 | -10/Subcaves | Discovered new exit (range 6) 2232 | -10/Subcaves | Ambushed by Subdwellers from Twisted Machinery 2623 | -10/Subcaves | Core integrity fell below 20% 2629 | -10/Subcaves | Destroyed by 3R-JJ4(R) with Subdweller Machine Gun Last Messages --------------- 02305_ Acquired 22 matter. 02312_ Acquired 1 matter. 02341_ Subatomizers dissect the Sub. Power Source. 02341_ Acquired Huge Storage Unit. 02346_ Acquired Mak. Power Source. 02349_ Acquired Sub. Power Source. 02356_ Acquired Sml. Storage Unit. 02359_ Acquired Lgt. Cannon. 02370_ Acquired Arm. Wheel. 02373_ Acquired Com. Wheel. 02380_ Acquired Lgt. Assault Rifle. 02436_ Subatomizers dissect the Sub. Monowheel. 02471_ Acquired Scrap Shield Fragment. 02472_ Acquired 20 matter. 02484_ Acquired Scrap Shield Fragment. 02497_ Acquired Sub. Monowheel. 02552_ Acquired Sub. Machine Gun. 02623_ IX-9I9(R) destroyed. Map ----- +----------------------------------------------------+ | ?## ###??##??????????????????????????????????????? | | ## ##???# #??????????????????????????????????????? | | # ##???# #???????????????????????????????????????? | | ## ##? #????????????????????????????????????????? | | ?## ## #?????????????????????????????????????????? | | ??# # #??###?????????????????????????????????????? | | ?## #?## ##????????????????????????????????????? | | ##% #### #????????????????????????????????????? | | # #### #????????????????????????????????????? | | #?# #???????? ????????????????????????? | | # ### ##???????? ????????????????????????? | | # # ########??? ????????????????????????? | | ##" """#??? ????????????????????????? | | ## "#??? ????????????????????????? | | # # #??? ????????????????????????? | | ### %"##?? ????????????????????????? | | #### <#??# ????????????????????????? | | ## % "##?## ????????????????????????? | | ### "#??? ????????????????????????? | | ## ##?# "#??? ###??????????????????????? | | ######??#" """#??## ###???#????????????????? | | #????###########??? "" #??"##???????????????? | | #????# ### #??????## " #??""## ????????????? | | ##???## ###????# # #?? ""????????????? | | ###### # ##??## ## ### " " ???????????? | | # ## #??# ]R@ """?????????????? | | ##?# = """ """"????????????? | | ### ### #?# "" "" """#????????????? | | ##?## ## #?## ## """"#?????????????? | | ###???# ##!=###= " # """#?????????????? | | ??????##### *=!!! """#?????????????? | | ??????????######%#% ## ##"" ##?????????????? | | ??????????????#;####### ######?#"##??????????????? | | ??????????????##??????###???????##???????????????? | | ?????????????????????????????????????????????????? | | ?????????????????????????????????????????????????? | | ?????????????????????????????????????????????????? | | ?????????????????????????????????????????????????? | | ?????????????????????????????????????????????????? | | ?????????????????????????????????????????????????? | | ?????????????????????????????????????????????????? | | ?????????????????????????????????????????????????? | | ?????????????????????????????????????????????????? | | ?????????????????????????????????????????????????? | | ?????????????????????????????????????????????????? | | ?????????????????????????????????????????????????? | | ?????????????????????????????????????????????????? | | ?????????????????????????????????????????????????? | | | | | +----------------------------------------------------+ Best States ------------- Heat Dissipation 25 Energy Generation 10 Energy Capacity 250 Matter Stores 300 Matter Capacity 300 Sight Range 16 Terrain Scan Density 10 Armor Coverage 800 Evasion (%) 42 Recoil Reduction 2 Salvage Targeting 1 Item Schematics ----------------- None Robot Schematics ------------------ None Fabricated ------------ Nothing Repaired ---------- Nothing Alien Tech Used ----------------- None Achievements -------------- None Challenges ------------ None Game ------ Seed AccelerationSystemRouter Manual? 0 Play Time 00:14:54 Cumulative 344.8 hours Start 2025.06.08 @ 22:05:53 End 2025.06.08 @ 22:17:46 Sessions 1 Manual Loads 0 Difficulty Rogue Special Mode None Game No. 169 Rogue 106 Adventurer 16 Explorer 47 Win Type - Total 43 Types 24/5/6/1/0/2/2/1/1/1 Lore% 93 Gallery% 88 Achievement% 83 Wizard Run 0 Options --------- Layout 2 ASCII 0 Keyboard 0 Movement Mouse Keybinds 0 Fullscreen 1 Font 32/Tamsyn Map View 50x44 Zoom Use 0% Tactical HUD 1 Map Filters NONE Filters NONE Steam 1 RUN: f8410017-68b1-430a-8eaf-bf8626931349